Body Name,Document Number,Service,Type of Expenditure,Invoice Date,Supplier Name,Cost to the Council (Amount Exc VAT),Month
EREWASH BOROUGH COUNCIL,30506,Planning                      ,Structural Property Works     ,12-Dec-2023,NORWOOD ELECTRICAL UK LTD               ,"2,050.00",Jan-24
EREWASH BOROUGH COUNCIL,31348,Planning                      ,Structural Property Works     ,30-Nov-2023,BAILY GARNER LLP                        ,"3,945.00",Jan-24
EREWASH BOROUGH COUNCIL,31118,Planning                      ,Structural Property Works     ,17-Nov-2023,BRITISH TELECOMMUNICATIONS PLC          ,"6,538.00",Jan-24
EREWASH BOROUGH COUNCIL,31329,Planning                      ,Structural Property Works     ,30-Oct-2023,GAGARIN STUDIO                          ,"9,100.00",Jan-24
EREWASH BOROUGH COUNCIL,31037,Planning                      ,Structural Property Works     ,02-Jan-2024,PEAK ECOLOGY LTD                        ,"1,858.00",Jan-24
EREWASH BOROUGH COUNCIL,31038,Planning                      ,External Property Works       ,02-Jan-2024,PEAK ECOLOGY LTD                        ,"5,618.00",Jan-24
EREWASH BOROUGH COUNCIL,31017,Planning                      ,External Property Works       ,29-Dec-2023,COREUS PROJECTS LTD                     ,766.67,Jan-24
EREWASH BOROUGH COUNCIL,31018,Planning                      ,External Property Works       ,29-Dec-2023,COREUS PROJECTS LTD                     ,"1,890.63",Jan-24
EREWASH BOROUGH COUNCIL,31329,Planning                      ,External Property Works       ,30-Oct-2023,GAGARIN STUDIO                          ,"3,800.00",Jan-24
EREWASH BOROUGH COUNCIL,31395,Planning                      ,External Property Works       ,31-Dec-2023,31 TEN CONSULTING LTD                   ,"2,000.00",Jan-24
EREWASH BOROUGH COUNCIL,31330,Human Resources and ICT       ,External Property Works       ,18-Dec-2023,WCL UK LTD                              ,"86,938.42",Jan-24
EREWASH BOROUGH COUNCIL,31190,Property and Leisure Services ,External Property Works       ,10-Nov-2023,TEK WHITE LINING LTD                    ,"1,995.00",Jan-24
EREWASH BOROUGH COUNCIL,31364,Property and Leisure Services ,External Property Works       ,31-Dec-2023,MIDLAND ROOFING SERVICES  (DERBY) LTD   ,"19,943.00",Jan-24
EREWASH BOROUGH COUNCIL,30854,Operational Services          ,"Plant, Machinery and Equipment",14-Dec-2023,SYNECTICS SECURITY LIMITED              ,"2,199.71",Jan-24
EREWASH BOROUGH COUNCIL,30500,Operational Services          ,"Plant, Machinery and Equipment",06-Dec-2023,SYNECTICS SECURITY LIMITED              ,"2,456.41",Jan-24
EREWASH BOROUGH COUNCIL,31043,Regulatory and Housing Service,Disabled Facilities Grant     ,20-Dec-2023,DERBYSHIRE COUNTY COUNCIL...            ,"2,481.00",Jan-24
EREWASH BOROUGH COUNCIL,31042,Regulatory and Housing Service,Disabled Facilities Grant     ,20-Dec-2023,DERBYSHIRE COUNTY COUNCIL...            ,"2,517.00",Jan-24
EREWASH BOROUGH COUNCIL,31111,Regulatory and Housing Service,Disabled Facilities Grant     ,14-Dec-2023,DERBYSHIRE COUNTY COUNCIL...            ,"3,450.00",Jan-24
EREWASH BOROUGH COUNCIL,31209,Regulatory and Housing Service,Disabled Facilities Grant     ,05-Jan-2024,DERBYSHIRE COUNTY COUNCIL...            ,"8,385.96",Jan-24
EREWASH BOROUGH COUNCIL,31120,Regulatory and Housing Service,Disabled Facilities Grant     ,29-Nov-2023,DERBYSHIRE COUNTY COUNCIL...            ,"29,578.89",Jan-24
EREWASH BOROUGH COUNCIL,31630,Regulatory and Housing Service,Disabled Facilities Grant     ,11-Jan-2024,DERBYSHIRE COUNTY COUNCIL...            ,"5,586.51",Jan-24
EREWASH BOROUGH COUNCIL,31528,Regulatory and Housing Service,Disabled Facilities Grant     ,04-Jan-2024,DERBYSHIRE COUNTY COUNCIL...            ,"5,870.08",Jan-24
EREWASH BOROUGH COUNCIL,31525,Regulatory and Housing Service,Disabled Facilities Grant     ,08-Jan-2024,DERBYSHIRE COUNTY COUNCIL...            ,"6,654.48",Jan-24
EREWASH BOROUGH COUNCIL,31524,Regulatory and Housing Service,Disabled Facilities Grant     ,04-Jan-2024,DERBYSHIRE COUNTY COUNCIL...            ,"6,705.56",Jan-24
EREWASH BOROUGH COUNCIL,31527,Regulatory and Housing Service,Disabled Facilities Grant     ,04-Jan-2024,DERBYSHIRE COUNTY COUNCIL...            ,"6,919.48",Jan-24
EREWASH BOROUGH COUNCIL,31526,Regulatory and Housing Service,Disabled Facilities Grant     ,05-Jan-2024,DERBYSHIRE COUNTY COUNCIL...            ,"9,547.22",Jan-24
EREWASH BOROUGH COUNCIL,31523,Regulatory and Housing Service,Disabled Facilities Grant     ,10-Jan-2024,DERBYSHIRE COUNTY COUNCIL...            ,"9,955.32",Jan-24
EREWASH BOROUGH COUNCIL,32025,EBC Balance Sheet             ,Lloyds Credit Card Suspense   ,02-Jan-2024,LLOYDS BANK PLC                         ,"4,602.58",Jan-24
EREWASH BOROUGH COUNCIL,32025,EBC Balance Sheet             ,Lloyds Credit Card Suspense   ,02-Jan-2024,LLOYDS BANK PLC                         ,"1,048.50",Jan-24
EREWASH BOROUGH COUNCIL,31359,EBC Balance Sheet             ,Energy Bills Support Scheme AF,11-Jan-2024,DEPT FOR ENERGY SECURITY & NET ZERO     ,"329,200.00",Jan-24
EREWASH BOROUGH COUNCIL,31361,EBC Balance Sheet             ,Alternative Fuel Pmt Scheme AF,11-Jan-2024,DEPT FOR ENERGY SECURITY & NET ZERO     ,"23,400.00",Jan-24
EREWASH BOROUGH COUNCIL,30262,Homelessness                  ,Interpreter Services          ,30-Nov-2023,LANGUAGE LINE LTD                       ,"2,185.05",Jan-24
EREWASH BOROUGH COUNCIL,31129,Homelessness                  ,Interpreter Services          ,31-Dec-2023,LANGUAGE LINE LTD                       ,"2,142.55",Jan-24
EREWASH BOROUGH COUNCIL,31084,Civic Transport               ,Hire Charges                  ,31-Dec-2023,PINNACLE EXECUTIVE CARS LIMITED         ,"1,120.00",Jan-24
EREWASH BOROUGH COUNCIL,30832,Arts Development              ,General Equipment             ,21-Sep-2023,ABILITY SMART LIMITED                   ,535.00,Jan-24
EREWASH BOROUGH COUNCIL,30716,Noise Control                 ,General Equipment             ,18-Dec-2023,CAMPBELL ASSOCIATES                     ,933.00,Jan-24
EREWASH BOROUGH COUNCIL,30636,Commissioned Projects         ,General Equipment             ,12-Dec-2023,ALL BEING WELL                          ,630.00,Jan-24
EREWASH BOROUGH COUNCIL,30435,Reprographics                 ,Equipment Leasing Charge      ,08-Dec-2023,KONICA MINOLTA BUSINESS SOLUTIONS (UK) L,263.33,Jan-24
EREWASH BOROUGH COUNCIL,30288,Reprographics                 ,Equipment Leasing Charge      ,05-Dec-2023,KONICA MINOLTA BUSINESS SOLUTIONS (UK) L,"1,014.93",Jan-24
EREWASH BOROUGH COUNCIL,30436,ICT Support Services          ,Equipment Leasing Charge      ,06-Dec-2023,RICOH UK LTD                            ,"4,735.44",Jan-24
EREWASH BOROUGH COUNCIL,30297,Transport Trading Account     ,Materials and Consumables     ,05-Dec-2023,L &  S ENGINEERS LTD                    ,258.85,Jan-24
EREWASH BOROUGH COUNCIL,30441,Street Scene                  ,Materials and Consumables     ,08-Dec-2023,TUDOR ENVIRONMENTAL                     ,604.60,Jan-24
EREWASH BOROUGH COUNCIL,30676,Street Scene                  ,Materials and Consumables     ,16-Dec-2023,STANTON RECYCLING LIMITED               ,791.20,Jan-24
EREWASH BOROUGH COUNCIL,31396,Sports Devt Coaching & Courses,Materials and Consumables     ,11-Jan-2024,THE SEVEN OAKS INN AND RESTAURANT       ,457.60,Jan-24
EREWASH BOROUGH COUNCIL,30709,Trade Waste                   ,Bins                          ,15-Dec-2023,ESE WORLD LIMITED                       ,"2,055.75",Jan-24
EREWASH BOROUGH COUNCIL,30709,Trade Waste                   ,Bins                          ,15-Dec-2023,ESE WORLD LIMITED                       ,"1,370.50",Jan-24
EREWASH BOROUGH COUNCIL,30709,Trade Waste                   ,Bins                          ,15-Dec-2023,ESE WORLD LIMITED                       ,"1,471.60",Jan-24
EREWASH BOROUGH COUNCIL,30709,Trade Waste                   ,Bins                          ,15-Dec-2023,ESE WORLD LIMITED                       ,915.60,Jan-24
EREWASH BOROUGH COUNCIL,30835,Kerbside Recycling Collection ,Bins                          ,22-Dec-2023,ROLLIN TRANSPORT TRAINING               ,455.00,Jan-24
EREWASH BOROUGH COUNCIL,30724,Household Waste Collection    ,Personal Protective Equipment ,19-Dec-2023,PROTECTIVE WEAR SUPPLIES LTD            ,503.50,Jan-24
EREWASH BOROUGH COUNCIL,31020,Household Waste Collection    ,Personal Protective Equipment ,29-Dec-2023,ARCO                                    ,972.55,Jan-24
EREWASH BOROUGH COUNCIL,30986,Homelessness                  ,Temporary Accommodation       ,12-Dec-2023,GHHLLP trading as GEORGIAN HOUSE HOTEL  ,568.75,Jan-24
EREWASH BOROUGH COUNCIL,31163,Homelessness                  ,Temporary Accommodation       ,02-Jan-2024,GHHLLP trading as GEORGIAN HOUSE HOTEL  ,568.75,Jan-24
EREWASH BOROUGH COUNCIL,30524,Homelessness                  ,Temporary Accommodation       ,06-Dec-2023,GHHLLP trading as GEORGIAN HOUSE HOTEL  ,"1,093.75",Jan-24
EREWASH BOROUGH COUNCIL,30983,Homelessness                  ,Temporary Accommodation       ,13-Dec-2023,GHHLLP trading as GEORGIAN HOUSE HOTEL  ,"1,093.75",Jan-24
EREWASH BOROUGH COUNCIL,30987,Homelessness                  ,Temporary Accommodation       ,19-Dec-2023,GHHLLP trading as GEORGIAN HOUSE HOTEL  ,"1,137.50",Jan-24
EREWASH BOROUGH COUNCIL,30984,Homelessness                  ,Temporary Accommodation       ,20-Dec-2023,GHHLLP trading as GEORGIAN HOUSE HOTEL  ,"2,187.50",Jan-24
EREWASH BOROUGH COUNCIL,31161,Homelessness                  ,Temporary Accommodation       ,03-Jan-2024,GHHLLP trading as GEORGIAN HOUSE HOTEL  ,875.00,Jan-24
EREWASH BOROUGH COUNCIL,31162,Homelessness                  ,Temporary Accommodation       ,03-Jan-2024,GHHLLP trading as GEORGIAN HOUSE HOTEL  ,"1,093.75",Jan-24
EREWASH BOROUGH COUNCIL,31134,Homelessness                  ,Temporary Accommodation       ,05-Jan-2024,VICTORIA PARK HOTEL                     ,"1,173.00",Jan-24
EREWASH BOROUGH COUNCIL,29153,Homelessness                  ,Temporary Accommodation       ,31-Oct-2023,VICTORIA PARK HOTEL                     ,"1,805.00",Jan-24
EREWASH BOROUGH COUNCIL,30227,Homelessness                  ,Temporary Accommodation       ,04-Dec-2023,PARAMOUNT HOTEL                         ,300.00,Jan-24
EREWASH BOROUGH COUNCIL,30839,Homelessness                  ,Temporary Accommodation       ,25-Dec-2023,PARAMOUNT HOTEL                         ,420.00,Jan-24
EREWASH BOROUGH COUNCIL,31156,Homelessness                  ,Temporary Accommodation       ,08-Jan-2024,PARAMOUNT HOTEL                         ,480.00,Jan-24
EREWASH BOROUGH COUNCIL,30838,Homelessness                  ,Temporary Accommodation       ,25-Dec-2023,PARAMOUNT HOTEL                         ,600.00,Jan-24
EREWASH BOROUGH COUNCIL,30979,Homelessness                  ,Temporary Accommodation       ,01-Jan-2024,PARAMOUNT HOTEL                         ,840.00,Jan-24
EREWASH BOROUGH COUNCIL,31388,Homelessness                  ,Temporary Accommodation       ,15-Jan-2024,PARAMOUNT HOTEL                         ,560.00,Jan-24
EREWASH BOROUGH COUNCIL,31576,Homelessness                  ,Temporary Accommodation       ,22-Jan-2024,PARAMOUNT HOTEL                         ,560.00,Jan-24
EREWASH BOROUGH COUNCIL,29783,Homelessness                  ,Temporary Accommodation       ,20-Nov-2023,A38 WOODLANDS                           ,406.00,Jan-24
EREWASH BOROUGH COUNCIL,30837,Homelessness                  ,Temporary Accommodation       ,25-Dec-2023,A38 WOODLANDS                           ,406.00,Jan-24
EREWASH BOROUGH COUNCIL,30970,Homelessness                  ,Temporary Accommodation       ,01-Jan-2024,A38 WOODLANDS                           ,406.00,Jan-24
EREWASH BOROUGH COUNCIL,31152,Homelessness                  ,Temporary Accommodation       ,08-Jan-2024,A38 WOODLANDS                           ,406.00,Jan-24
EREWASH BOROUGH COUNCIL,29720,Homelessness                  ,Temporary Accommodation       ,15-Nov-2023,HARLEYS INN                             ,450.00,Jan-24
EREWASH BOROUGH COUNCIL,30592,Homelessness Prevention       ,Temporary Accommodation       ,13-Dec-2023,G2 RECRUITMENT SOLUTIONS                ,944.30,Jan-24
EREWASH BOROUGH COUNCIL,30401,Homelessness Prevention       ,Temporary Accommodation       ,06-Dec-2023,G2 RECRUITMENT SOLUTIONS                ,"1,406.00",Jan-24
EREWASH BOROUGH COUNCIL,30800,Homelessness Prevention       ,Temporary Accommodation       ,20-Dec-2023,G2 RECRUITMENT SOLUTIONS                ,"1,406.00",Jan-24
EREWASH BOROUGH COUNCIL,30953,Homelessness Prevention       ,Temporary Accommodation       ,27-Dec-2023,G2 RECRUITMENT SOLUTIONS                ,"1,366.10",Jan-24
EREWASH BOROUGH COUNCIL,30811,Homelessness                  ,Leased Properties             ,01-Jan-2024,FUTURES HOMESCAPE LTD                   ,"1,141.75",Jan-24
EREWASH BOROUGH COUNCIL,31096,Homelessness                  ,Leased Properties             ,01-Jan-2024,EMH HOMES                               ,"1,171.89",Jan-24
EREWASH BOROUGH COUNCIL,31095,Homelessness                  ,Leased Properties             ,01-Jan-2024,EMH HOMES                               ,"1,477.32",Jan-24
EREWASH BOROUGH COUNCIL,30662,Household Waste Collection    ,Consultants Fees              ,17-Dec-2023,SELLICK PARTNERSHIP RECRUITMENT SPECIAL ,"2,475.00",Jan-24
EREWASH BOROUGH COUNCIL,30834,Trade Waste                   ,Consultants Fees              ,22-Dec-2023,SELLICK PARTNERSHIP RECRUITMENT SPECIAL ,"2,475.00",Jan-24
EREWASH BOROUGH COUNCIL,30452,Trade Waste                   ,Consultants Fees              ,11-Dec-2023,SELLICK PARTNERSHIP RECRUITMENT SPECIAL ,"2,475.00",Jan-24
EREWASH BOROUGH COUNCIL,31557,Development Control           ,Consultants Fees              ,15-Jan-2024,DERBYSHIRE COUNTY COUNCIL...            ,"3,074.49",Jan-24
EREWASH BOROUGH COUNCIL,30655,Development Control           ,Consultants Fees              ,15-Dec-2023,EXTRA PERSONNEL LTD                     ,650.46,Jan-24
EREWASH BOROUGH COUNCIL,30672,Development Control           ,Consultants Fees              ,14-Dec-2023,EXTRA PERSONNEL LTD                     ,674.73,Jan-24
EREWASH BOROUGH COUNCIL,30846,Development Control           ,Consultants Fees              ,22-Dec-2023,EXTRA PERSONNEL LTD                     ,650.46,Jan-24
EREWASH BOROUGH COUNCIL,30211,Development Control           ,Consultants Fees              ,01-Dec-2023,EXTRA PERSONNEL LTD                     ,650.46,Jan-24
EREWASH BOROUGH COUNCIL,30448,Development Control           ,Consultants Fees              ,08-Dec-2023,EXTRA PERSONNEL LTD                     ,650.46,Jan-24
EREWASH BOROUGH COUNCIL,30717,Development Control           ,Consultants Fees              ,18-Dec-2023,ESSEX COUNTY COUNCIL                    ,"4,560.00",Jan-24
EREWASH BOROUGH COUNCIL,31178,Planning Policy               ,Consultants Fees              ,29-Dec-2023,ADDMIN UK                               ,"6,860.35",Jan-24
EREWASH BOROUGH COUNCIL,30463,Building Control - Fee Earning,Consultants Fees              ,30-Nov-2023,JNP GROUP CONSULTING ENGINEERS LTD      ,872.00,Jan-24
EREWASH BOROUGH COUNCIL,30798,Infec Disease & Food Poisoning,Contracted Services           ,20-Dec-2023,OSBORNE RICHARDSON                      ,367.80,Jan-24
EREWASH BOROUGH COUNCIL,29519,Infec Disease & Food Poisoning,Contracted Services           ,08-Nov-2023,OSBORNE RICHARDSON                      ,444.10,Jan-24
EREWASH BOROUGH COUNCIL,29942,Infec Disease & Food Poisoning,Contracted Services           ,22-Nov-2023,OSBORNE RICHARDSON                      ,673.00,Jan-24
EREWASH BOROUGH COUNCIL,30960,Building Control Adv & Inform ,Contracted Services           ,25-Dec-2023,MANSFIELD DISTRICT COUNCIL              ,"1,000.00",Jan-24
EREWASH BOROUGH COUNCIL,31352,Emergency Planning            ,Contracted Services           ,11-Jan-2024,DERBYSHIRE COUNTY COUNCIL...            ,"1,000.00",Jan-24
EREWASH BOROUGH COUNCIL,31201,Trees Hedges Local Nature Res ,Contracted Services           ,02-Jan-2024,TOM RICHARDS TREE SERVICES              ,600.00,Jan-24
EREWASH BOROUGH COUNCIL,31546,Trees Hedges Local Nature Res ,Contracted Services           ,15-Jan-2024,TOM RICHARDS TREE SERVICES              ,500.00,Jan-24
EREWASH BOROUGH COUNCIL,31602,Watercourse Maintenance       ,Contracted Services           ,19-Jan-2024,ILKESTON FENCING LIMITED                ,559.78,Jan-24
EREWASH BOROUGH COUNCIL,30661,Watercourse Maintenance       ,Contracted Services           ,16-Dec-2023,T H HEATH  CONTRACTS  LTD               ,"1,665.52",Jan-24
EREWASH BOROUGH COUNCIL,30992,Car Parking                   ,Contracted Services           ,31-Dec-2023,KINGS ARMOURED SECURITY SERVICES        ,"1,415.20",Jan-24
EREWASH BOROUGH COUNCIL,30799,Leisure Services              ,Contracted Services           ,20-Dec-2023,PARKWOOD LEISURE LTD                    ,"27,667.10",Jan-24
EREWASH BOROUGH COUNCIL,30423,Bath Street Shuttle Bus       ,Contracted Services           ,30-Nov-2023,DENNIS EAGLE LTD                        ,642.00,Jan-24
EREWASH BOROUGH COUNCIL,31702,Insurances (Corporate Matters),Insurance                     ,23-Jan-2024,ALDERSTONE SOLICITORS CLIENT ACCOUNT    ,"9,000.00",Jan-24
EREWASH BOROUGH COUNCIL,31631,Ilkeston Charter Fair         ,Security                      ,23-Jan-2024,DERBYSHIRE COUNTY COUNCIL...            ,361.12,Jan-24
EREWASH BOROUGH COUNCIL,30963,Front Line Support Services   ,Security                      ,28-Dec-2023,KINGS ARMOURED SECURITY SERVICES        ,360.00,Jan-24
EREWASH BOROUGH COUNCIL,31196,Statement of Accounts         ,Valuation Fees                ,09-Jan-2024,WILKS HEAD & EVE LTD                    ,"5,200.00",Jan-24
EREWASH BOROUGH COUNCIL,31594,Insurances (Corporate Matters),Valuation Fees                ,11-Jan-2024,MARSH LTD                               ,"2,500.00",Jan-24
EREWASH BOROUGH COUNCIL,31125,Licensing - Health Services   ,Veterinary Fees               ,30-Nov-2023,SCARSDALE VETS                          ,615.30,Jan-24
EREWASH BOROUGH COUNCIL,31422,Local Land Charges            ,County Council Search Charges ,02-Jan-2024,DERBYSHIRE COUNTY COUNCIL...            ,"7,576.42",Jan-24
EREWASH BOROUGH COUNCIL,31286,Council Tax Collection        ,Fees Costs and Expenses       ,10-Jan-2024,PENHAM EXCEL LIMITED                    ,310.00,Jan-24
EREWASH BOROUGH COUNCIL,31082,Non-domestic Rates Collection ,Fees Costs and Expenses       ,20-Dec-2023,INFORM CPI LTD                          ,600.00,Jan-24
EREWASH BOROUGH COUNCIL,31206,Commissioned Projects         ,Fees Costs and Expenses       ,10-Jan-2024,THE LITTLE KITCHEN LTD                  ,300.00,Jan-24
EREWASH BOROUGH COUNCIL,31175,Erewash Museum                ,Special Events                ,22-Dec-2023,S. A. ASSOCIATES MANAGEMENT TRAINING LTD,998.00,Jan-24
EREWASH BOROUGH COUNCIL,31537,Erewash Museum                ,Special Events                ,18-Dec-2023,S. A. ASSOCIATES MANAGEMENT TRAINING LTD,995.00,Jan-24
EREWASH BOROUGH COUNCIL,31583,Treasury and Bank Charges     ,BACS Charges                  ,12-Jan-2024,LLOYDS BANK PLC                         ,526.79,Jan-24
EREWASH BOROUGH COUNCIL,31188,Treasury and Bank Charges     ,Credit/Debit Card Charges     ,09-Jan-2024,ACCESS PAYSUITE LTD - WAS PAY 360       ,"4,210.90",Jan-24
EREWASH BOROUGH COUNCIL,31011,Car Parking                   ,Credit/Debit Card Charges     ,31-Dec-2023,INTERNATIONAL PARKING SYSTEMS UK LTD    ,"3,118.13",Jan-24
EREWASH BOROUGH COUNCIL,31959,Treasury and Bank Charges     ,Allpay/Post Office Charges    ,31-Jan-2024,ALLPAY LIMITED                          ,636.09,Jan-24
EREWASH BOROUGH COUNCIL,30989,Revenues and Benefits         ,Software Licences             ,31-Dec-2023,CIVICA UK LIMITED                       ,"1,353.90",Jan-24
EREWASH BOROUGH COUNCIL,31008,Non-domestic Rates Collection ,Software Licences             ,26-Dec-2023,CIVICA UK LIMITED                       ,"2,099.75",Jan-24
EREWASH BOROUGH COUNCIL,30402,Payments                      ,Software Licences             ,05-Dec-2023,INSIGHT DIRECT (UK) LTD                 ,265.07,Jan-24
EREWASH BOROUGH COUNCIL,30407,ICT Support Services          ,Data Lines                    ,05-Dec-2023,AXESS SYSTEMS LTD                       ,564.00,Jan-24
EREWASH BOROUGH COUNCIL,31192,ICT Support Services          ,Mobile Phones                 ,09-Jan-2024,CLASS AFFINITY PROJECTS LTD             ,"1,461.09",Jan-24
EREWASH BOROUGH COUNCIL,30515,Revenues and Benefits         ,Postages                      ,13-Dec-2023,ROYAL MAIL GROUP LTD.                   ,739.10,Jan-24
EREWASH BOROUGH COUNCIL,31193,Revenues and Benefits         ,Postages                      ,10-Jan-2024,ROYAL MAIL GROUP LTD.                   ,470.95,Jan-24
EREWASH BOROUGH COUNCIL,30706,Revenues and Benefits         ,Postages                      ,20-Dec-2023,ROYAL MAIL GROUP LTD.                   ,825.40,Jan-24
EREWASH BOROUGH COUNCIL,30836,Revenues and Benefits         ,Postages                      ,27-Dec-2023,ROYAL MAIL GROUP LTD.                   ,447.95,Jan-24
EREWASH BOROUGH COUNCIL,30312,Revenues and Benefits         ,Postages                      ,06-Dec-2023,ROYAL MAIL GROUP LTD.                   ,395.00,Jan-24
EREWASH BOROUGH COUNCIL,30289,Revenues and Benefits         ,Postages                      ,06-Dec-2023,ROYAL MAIL GROUP LTD.                   ,619.05,Jan-24
EREWASH BOROUGH COUNCIL,31344,Revenues and Benefits         ,Postages                      ,31-Dec-2023,TELSOLUTIONS LTD                        ,300.00,Jan-24
EREWASH BOROUGH COUNCIL,31119,ICT Support Services          ,Telephones                    ,20-Dec-2023,BRITISH TELECOMMUNICATIONS PLC          ,708.08,Jan-24
EREWASH BOROUGH COUNCIL,30863,ICT Support Services          ,Telephones                    ,22-Dec-2023,BRITISH TELECOMMUNICATIONS PLC          ,776.44,Jan-24
EREWASH BOROUGH COUNCIL,29415,Economic Development          ,Grants and Subscriptions      ,13-Oct-2023,DERBYSHIRE COUNTY COUNCIL...            ,500.00,Jan-24
EREWASH BOROUGH COUNCIL,31003,Economic Development          ,Project Grants                ,21-Dec-2023,INSIDE OUT GROUP (EUROPE) LTD           ,274.00,Jan-24
EREWASH BOROUGH COUNCIL,31138,Economic Development          ,Project Grants                ,22-Dec-2023,BROWNE JACOBSON                         ,"3,704.90",Jan-24
EREWASH BOROUGH COUNCIL,29154,Economic Development          ,Project Grants                ,31-Oct-2023,PICK EVERARD                            ,"7,325.50",Jan-24
EREWASH BOROUGH COUNCIL,31396,Sports Devt Coaching & Courses,Project Grants                ,11-Jan-2024,THE SEVEN OAKS INN AND RESTAURANT       ,"1,100.00",Jan-24
EREWASH BOROUGH COUNCIL,31927,EBC Balance Sheet             ,Fuel Store                    ,19-Jan-2024,BWOC LTD                                ,"33,652.15",Jan-24
EREWASH BOROUGH COUNCIL,30721,EBC Balance Sheet             ,Fuel Store                    ,18-Dec-2023,CERTAS ENERGY UK LIMITED T/A CARLTON FUE,"22,418.00",Jan-24
EREWASH BOROUGH COUNCIL,31733,EBC Balance Sheet             ,NNDR Coll Fund Control Account,22-Jan-2024,"DEPT FOR LEVELLING UP,HOUSING&COMMUNITIE","868,659.00",Jan-24
EREWASH BOROUGH COUNCIL,31159,EBC Balance Sheet             ,Payroll Coll Acc - Income Tax ,19-Jan-2024,HMRC CUMBERNAULD                        ,437.00,Jan-24
EREWASH BOROUGH COUNCIL,31613,EBC Balance Sheet             ,Payroll Coll Acc - Income Tax ,23-Jan-2024,HMRC CUMBERNAULD                        ,487.40,Jan-24
EREWASH BOROUGH COUNCIL,30966,EBC Balance Sheet             ,Payroll Coll Acc - Income Tax ,19-Jan-2024,HMRC CUMBERNAULD                        ,"76,482.95",Jan-24
EREWASH BOROUGH COUNCIL,30965,EBC Balance Sheet             ,Payroll Coll Acc Superanuation,17-Jan-2024,DERBYSHIRE COUNTY COUNCIL...            ,"174,758.78",Jan-24
EREWASH BOROUGH COUNCIL,30965,EBC Balance Sheet             ,Payroll Coll Acc Superanuation,17-Jan-2024,DERBYSHIRE COUNTY COUNCIL...            ,"41,834.00",Jan-24
EREWASH BOROUGH COUNCIL,31159,EBC Balance Sheet             ,Payroll Coll Acc National Ins ,19-Jan-2024,HMRC CUMBERNAULD                        ,514.59,Jan-24
EREWASH BOROUGH COUNCIL,31613,EBC Balance Sheet             ,Payroll Coll Acc National Ins ,23-Jan-2024,HMRC CUMBERNAULD                        ,523.87,Jan-24
EREWASH BOROUGH COUNCIL,30966,EBC Balance Sheet             ,Payroll Coll Acc National Ins ,19-Jan-2024,HMRC CUMBERNAULD                        ,"103,118.61",Jan-24
EREWASH BOROUGH COUNCIL,30966,EBC Balance Sheet             ,Payroll Coll Acc Student Loan ,19-Jan-2024,HMRC CUMBERNAULD                        ,"1,481.00",Jan-24
EREWASH BOROUGH COUNCIL,31610,EBC Balance Sheet             ,Payroll Coll Acc - Trade Union,23-Jan-2024,UNISON                                  ,318.40,Jan-24
EREWASH BOROUGH COUNCIL,31605,EBC Balance Sheet             ,Payroll Coll Acc Labour Party ,23-Jan-2024,EREWASH LABOUR GROUP                    ,"1,318.05",Jan-24
EREWASH BOROUGH COUNCIL,31612,EBC Balance Sheet             ,Payroll Coll Acc - AVCS       ,23-Jan-2024,PRUDENTIAL                              ,"9,175.36",Jan-24
EREWASH BOROUGH COUNCIL,30833,EBC Balance Sheet             ,Payroll Coll Acc - AVCS       ,22-Dec-2023,AVC WISE LIMITED                        ,399.03,Jan-24
EREWASH BOROUGH COUNCIL,31606,EBC Balance Sheet             ,Payroll Coll Acc Attmnt Orders,23-Jan-2024,CHILD MAINTENANCE SERVICE               ,864.74,Jan-24
EREWASH BOROUGH COUNCIL,31608,EBC Balance Sheet             ,EBC Fit for Work Scheme       ,23-Jan-2024,PARKWOOD LEISURE LTD                    ,464.00,Jan-24
EREWASH BOROUGH COUNCIL,31132,EBC Balance Sheet             ,Childcare Salary Sacrifice    ,05-Jan-2024,KIDDIVOUCHERS LTD                       ,618.00,Jan-24
EREWASH BOROUGH COUNCIL,30966,Human Resources               ,Apprenticeship Levy           ,19-Jan-2024,HMRC CUMBERNAULD                        ,"2,152.00",Jan-24
EREWASH BOROUGH COUNCIL,30966,Human Resources               ,Apprenticeship Levy           ,19-Jan-2024,HMRC CUMBERNAULD                        ,"1,250.00",Jan-24
EREWASH BOROUGH COUNCIL,30959,Transport Trading Account     ,Agency Staff                  ,24-Dec-2023,INPLACE PERSONNEL SERVICES LTD          ,562.38,Jan-24
EREWASH BOROUGH COUNCIL,31089,Transport Trading Account     ,Agency Staff                  ,17-Dec-2023,INPLACE PERSONNEL SERVICES LTD          ,"1,057.81",Jan-24
EREWASH BOROUGH COUNCIL,31087,Transport Trading Account     ,Agency Staff                  ,31-Dec-2023,INPLACE PERSONNEL SERVICES LTD          ,562.38,Jan-24
EREWASH BOROUGH COUNCIL,30654,Household Waste Collection    ,Agency Staff                  ,15-Dec-2023,EXTRA PERSONNEL LTD                     ,"4,910.14",Jan-24
EREWASH BOROUGH COUNCIL,30848,Household Waste Collection    ,Agency Staff                  ,22-Dec-2023,EXTRA PERSONNEL LTD                     ,"3,213.16",Jan-24
EREWASH BOROUGH COUNCIL,30971,Household Waste Collection    ,Agency Staff                  ,29-Dec-2023,EXTRA PERSONNEL LTD                     ,"3,295.98",Jan-24
EREWASH BOROUGH COUNCIL,30446,Household Waste Collection    ,Agency Staff                  ,08-Dec-2023,EXTRA PERSONNEL LTD                     ,"5,240.14",Jan-24
EREWASH BOROUGH COUNCIL,30652,Trade Waste                   ,Agency Staff                  ,15-Dec-2023,EXTRA PERSONNEL LTD                     ,615.30,Jan-24
EREWASH BOROUGH COUNCIL,30652,Trade Waste                   ,Agency Staff                  ,15-Dec-2023,EXTRA PERSONNEL LTD                     ,544.98,Jan-24
EREWASH BOROUGH COUNCIL,30842,Trade Waste                   ,Agency Staff                  ,22-Dec-2023,EXTRA PERSONNEL LTD                     ,703.20,Jan-24
EREWASH BOROUGH COUNCIL,30842,Trade Waste                   ,Agency Staff                  ,22-Dec-2023,EXTRA PERSONNEL LTD                     ,703.20,Jan-24
EREWASH BOROUGH COUNCIL,30977,Trade Waste                   ,Agency Staff                  ,29-Dec-2023,EXTRA PERSONNEL LTD                     ,703.20,Jan-24
EREWASH BOROUGH COUNCIL,30443,Trade Waste                   ,Agency Staff                  ,08-Dec-2023,EXTRA PERSONNEL LTD                     ,492.24,Jan-24
EREWASH BOROUGH COUNCIL,30654,Kerbside Recycling Collection ,Agency Staff                  ,15-Dec-2023,EXTRA PERSONNEL LTD                     ,"3,273.42",Jan-24
EREWASH BOROUGH COUNCIL,30848,Kerbside Recycling Collection ,Agency Staff                  ,22-Dec-2023,EXTRA PERSONNEL LTD                     ,"2,142.10",Jan-24
EREWASH BOROUGH COUNCIL,30971,Kerbside Recycling Collection ,Agency Staff                  ,29-Dec-2023,EXTRA PERSONNEL LTD                     ,"2,197.32",Jan-24
EREWASH BOROUGH COUNCIL,30446,Kerbside Recycling Collection ,Agency Staff                  ,08-Dec-2023,EXTRA PERSONNEL LTD                     ,"3,493.42",Jan-24
EREWASH BOROUGH COUNCIL,31144,Housing Grants Admin and Renov,Agency Staff                  ,05-Jan-2024,PRECISION RESOURCE GROUP LIMITED        ,"6,640.00",Jan-24
EREWASH BOROUGH COUNCIL,30412,Urban Renewal                 ,Agency Staff                  ,06-Dec-2023,BUCKINGHAM FUTURES LIMITED              ,"1,262.23",Jan-24
EREWASH BOROUGH COUNCIL,30806,Urban Renewal                 ,Agency Staff                  ,20-Dec-2023,BUCKINGHAM FUTURES LIMITED              ,"1,339.50",Jan-24
EREWASH BOROUGH COUNCIL,30197,Urban Renewal                 ,Agency Staff                  ,29-Nov-2023,BUCKINGHAM FUTURES LIMITED              ,"1,370.53",Jan-24
EREWASH BOROUGH COUNCIL,30612,Urban Renewal                 ,Agency Staff                  ,13-Dec-2023,BUCKINGHAM FUTURES LIMITED              ,"1,373.70",Jan-24
EREWASH BOROUGH COUNCIL,31105,Urban Renewal                 ,Agency Staff                  ,03-Jan-2024,BUCKINGHAM FUTURES LIMITED              ,"2,500.40",Jan-24
EREWASH BOROUGH COUNCIL,30689,Council Tax Support Admin     ,Agency Staff                  ,18-Dec-2023,BUSINESS SMART SOLUTIONS LIMITED        ,985.83,Jan-24
EREWASH BOROUGH COUNCIL,30482,Council Tax Support Admin     ,Agency Staff                  ,12-Dec-2023,BUSINESS SMART SOLUTIONS LIMITED        ,"1,143.33",Jan-24
EREWASH BOROUGH COUNCIL,30998,Council Tax Support Admin     ,Agency Staff                  ,27-Dec-2023,BUSINESS SMART SOLUTIONS LIMITED        ,988.75,Jan-24
EREWASH BOROUGH COUNCIL,30969,ICT Support Services          ,Agency Staff                  ,28-Dec-2023,ROBERT HALF LTD                         ,873.30,Jan-24
EREWASH BOROUGH COUNCIL,31296,ICT Support Services          ,Agency Staff                  ,11-Jan-2024,ROBERT HALF LTD                         ,908.48,Jan-24
EREWASH BOROUGH COUNCIL,31289,ICT Support Services          ,Agency Staff                  ,11-Jan-2024,ROBERT HALF LTD                         ,910.20,Jan-24
EREWASH BOROUGH COUNCIL,31290,ICT Support Services          ,Agency Staff                  ,11-Jan-2024,ROBERT HALF LTD                         ,910.20,Jan-24
EREWASH BOROUGH COUNCIL,31291,ICT Support Services          ,Agency Staff                  ,11-Jan-2024,ROBERT HALF LTD                         ,910.20,Jan-24
EREWASH BOROUGH COUNCIL,31292,ICT Support Services          ,Agency Staff                  ,11-Jan-2024,ROBERT HALF LTD                         ,910.20,Jan-24
EREWASH BOROUGH COUNCIL,31293,ICT Support Services          ,Agency Staff                  ,11-Jan-2024,ROBERT HALF LTD                         ,910.20,Jan-24
EREWASH BOROUGH COUNCIL,31294,ICT Support Services          ,Agency Staff                  ,11-Jan-2024,ROBERT HALF LTD                         ,910.20,Jan-24
EREWASH BOROUGH COUNCIL,31295,ICT Support Services          ,Agency Staff                  ,11-Jan-2024,ROBERT HALF LTD                         ,910.20,Jan-24
EREWASH BOROUGH COUNCIL,31297,ICT Support Services          ,Agency Staff                  ,11-Jan-2024,ROBERT HALF LTD                         ,910.20,Jan-24
EREWASH BOROUGH COUNCIL,31298,ICT Support Services          ,Agency Staff                  ,11-Jan-2024,ROBERT HALF LTD                         ,910.20,Jan-24
EREWASH BOROUGH COUNCIL,31299,ICT Support Services          ,Agency Staff                  ,11-Jan-2024,ROBERT HALF LTD                         ,910.20,Jan-24
EREWASH BOROUGH COUNCIL,31300,ICT Support Services          ,Agency Staff                  ,11-Jan-2024,ROBERT HALF LTD                         ,910.20,Jan-24
EREWASH BOROUGH COUNCIL,31301,ICT Support Services          ,Agency Staff                  ,11-Jan-2024,ROBERT HALF LTD                         ,910.20,Jan-24
EREWASH BOROUGH COUNCIL,31302,ICT Support Services          ,Agency Staff                  ,11-Jan-2024,ROBERT HALF LTD                         ,910.20,Jan-24
EREWASH BOROUGH COUNCIL,31495,ICT Support Services          ,Agency Staff                  ,18-Jan-2024,ROBERT HALF LTD                         ,393.60,Jan-24
EREWASH BOROUGH COUNCIL,30728,ICT Support Services          ,Agency Staff                  ,20-Dec-2023,ROBERT HALF LTD                         ,910.20,Jan-24
EREWASH BOROUGH COUNCIL,30610,Building Control - Fee Earning,Agency Staff                  ,14-Dec-2023,MATCHTECH GROUP (UK) LIMITED            ,825.00,Jan-24
EREWASH BOROUGH COUNCIL,30804,Building Control - Fee Earning,Agency Staff                  ,21-Dec-2023,MATCHTECH GROUP (UK) LIMITED            ,825.00,Jan-24
EREWASH BOROUGH COUNCIL,30957,Building Control - Fee Earning,Agency Staff                  ,28-Dec-2023,MATCHTECH GROUP (UK) LIMITED            ,825.00,Jan-24
EREWASH BOROUGH COUNCIL,30409,Building Control - Fee Earning,Agency Staff                  ,07-Dec-2023,MATCHTECH GROUP (UK) LIMITED            ,825.00,Jan-24
EREWASH BOROUGH COUNCIL,30976,Public Conveniences           ,Agency Staff                  ,29-Dec-2023,EXTRA PERSONNEL LTD                     ,500.00,Jan-24
EREWASH BOROUGH COUNCIL,30657,Street Scene                  ,Agency Staff                  ,15-Dec-2023,EXTRA PERSONNEL LTD                     ,"4,270.86",Jan-24
EREWASH BOROUGH COUNCIL,30653,Street Scene                  ,Agency Staff                  ,15-Dec-2023,EXTRA PERSONNEL LTD                     ,"4,847.30",Jan-24
EREWASH BOROUGH COUNCIL,30847,Street Scene                  ,Agency Staff                  ,22-Dec-2023,EXTRA PERSONNEL LTD                     ,"3,653.69",Jan-24
EREWASH BOROUGH COUNCIL,30844,Street Scene                  ,Agency Staff                  ,22-Dec-2023,EXTRA PERSONNEL LTD                     ,"4,803.06",Jan-24
EREWASH BOROUGH COUNCIL,30972,Street Scene                  ,Agency Staff                  ,29-Dec-2023,EXTRA PERSONNEL LTD                     ,"3,046.85",Jan-24
EREWASH BOROUGH COUNCIL,30976,Street Scene                  ,Agency Staff                  ,29-Dec-2023,EXTRA PERSONNEL LTD                     ,"5,295.94",Jan-24
EREWASH BOROUGH COUNCIL,30461,Street Scene                  ,Agency Staff                  ,11-Dec-2023,EXTRA PERSONNEL LTD                     ,763.45,Jan-24
EREWASH BOROUGH COUNCIL,30461,Street Scene                  ,Agency Staff                  ,11-Dec-2023,EXTRA PERSONNEL LTD                     ,763.45,Jan-24
EREWASH BOROUGH COUNCIL,30447,Street Scene                  ,Agency Staff                  ,08-Dec-2023,EXTRA PERSONNEL LTD                     ,"4,213.08",Jan-24
EREWASH BOROUGH COUNCIL,30445,Street Scene                  ,Agency Staff                  ,08-Dec-2023,EXTRA PERSONNEL LTD                     ,"4,443.82",Jan-24
EREWASH BOROUGH COUNCIL,30658,Long Eaton Market             ,Agency Staff                  ,15-Dec-2023,EXTRA PERSONNEL LTD                     ,295.92,Jan-24
EREWASH BOROUGH COUNCIL,30843,Long Eaton Market             ,Agency Staff                  ,22-Dec-2023,EXTRA PERSONNEL LTD                     ,295.92,Jan-24
EREWASH BOROUGH COUNCIL,30023,Long Eaton Market             ,Agency Staff                  ,27-Nov-2023,EXTRA PERSONNEL LTD                     ,690.44,Jan-24
EREWASH BOROUGH COUNCIL,30974,Long Eaton Market             ,Agency Staff                  ,29-Dec-2023,EXTRA PERSONNEL LTD                     ,295.92,Jan-24
EREWASH BOROUGH COUNCIL,30658,Ilkeston Market               ,Agency Staff                  ,15-Dec-2023,EXTRA PERSONNEL LTD                     ,197.28,Jan-24
EREWASH BOROUGH COUNCIL,30843,Ilkeston Market               ,Agency Staff                  ,22-Dec-2023,EXTRA PERSONNEL LTD                     ,197.28,Jan-24
EREWASH BOROUGH COUNCIL,30023,Ilkeston Market               ,Agency Staff                  ,27-Nov-2023,EXTRA PERSONNEL LTD                     ,460.30,Jan-24
EREWASH BOROUGH COUNCIL,30974,Ilkeston Market               ,Agency Staff                  ,29-Dec-2023,EXTRA PERSONNEL LTD                     ,197.28,Jan-24
EREWASH BOROUGH COUNCIL,30656,Civic Accommodation Ilkeston  ,Agency Staff                  ,15-Dec-2023,EXTRA PERSONNEL LTD                     ,250.65,Jan-24
EREWASH BOROUGH COUNCIL,30845,Civic Accommodation Ilkeston  ,Agency Staff                  ,22-Dec-2023,EXTRA PERSONNEL LTD                     ,358.55,Jan-24
EREWASH BOROUGH COUNCIL,30975,Civic Accommodation Ilkeston  ,Agency Staff                  ,29-Dec-2023,EXTRA PERSONNEL LTD                     ,338.25,Jan-24
EREWASH BOROUGH COUNCIL,30845,Toll Bar House                ,Agency Staff                  ,22-Dec-2023,EXTRA PERSONNEL LTD                     ,250.65,Jan-24
EREWASH BOROUGH COUNCIL,30975,Toll Bar House                ,Agency Staff                  ,29-Dec-2023,EXTRA PERSONNEL LTD                     ,250.65,Jan-24
EREWASH BOROUGH COUNCIL,31562,Human Resources               ,Recruitment Expenses          ,22-Jan-2024,NOTTINGHAM CITY COUNCIL                 ,574.00,Jan-24
EREWASH BOROUGH COUNCIL,30499,Occupational Health & Welfare ,Occupational Health Service   ,07-Dec-2023,MEDIGOLD HEALTH CONSULTANCY LIMITED     ,893.50,Jan-24
EREWASH BOROUGH COUNCIL,30962,Household Waste Collection    ,Training                      ,21-Dec-2023,J N KEY LOGISTICS TRAINING & COMPLIANCE ,525.00,Jan-24
EREWASH BOROUGH COUNCIL,30961,Household Waste Collection    ,Training                      ,16-Dec-2023,J N KEY LOGISTICS TRAINING & COMPLIANCE ,460.00,Jan-24
EREWASH BOROUGH COUNCIL,30802,Pedestrian Zones - Ilk and LE ,Planned Preventative Maintenan,20-Dec-2023,ASSURED SURFACING & CONSTRUCTION LTD    ,"1,200.00",Jan-24
EREWASH BOROUGH COUNCIL,30460,Property and Estates          ,Repairs and Maintenance       ,07-Dec-2023,ALPHA PARTNER (MIDLANDS)  LIMITED       ,973.50,Jan-24
EREWASH BOROUGH COUNCIL,31110,Car Parking                   ,Reactive Maintenance          ,27-Dec-2023,E.ON ENERGY SOLUTIONS LTD               ,496.00,Jan-24
EREWASH BOROUGH COUNCIL,30659,Property and Estates          ,Reactive Maintenance          ,16-Dec-2023,ALPHA PARTNER (MIDLANDS)  LIMITED       ,510.00,Jan-24
EREWASH BOROUGH COUNCIL,30660,Property and Estates          ,Reactive Maintenance          ,16-Dec-2023,ALPHA PARTNER (MIDLANDS)  LIMITED       ,551.60,Jan-24
EREWASH BOROUGH COUNCIL,30306,Property and Estates          ,Reactive Maintenance          ,06-Dec-2023,ALPHA PARTNER (MIDLANDS)  LIMITED       ,975.00,Jan-24
EREWASH BOROUGH COUNCIL,30947,Property and Estates          ,Reactive Maintenance          ,27-Dec-2023,MDB PLUMBING (NOTTM) LTD                ,473.20,Jan-24
EREWASH BOROUGH COUNCIL,31025,Erewash Museum                ,PPM Mechanical and Equipment  ,19-Dec-2023,KEY INTEGRATED SERVICES LTD             ,302.25,Jan-24
EREWASH BOROUGH COUNCIL,31024,Parks Pavilions               ,PPM Mechanical and Equipment  ,21-Dec-2023,KEY INTEGRATED SERVICES LTD             ,323.75,Jan-24
EREWASH BOROUGH COUNCIL,31391,Erewash Museum                ,Electricity                   ,11-Dec-2023,TOTALENERGIES GAS & POWER LTD           ,"1,080.68",Jan-24
EREWASH BOROUGH COUNCIL,30617,Erewash Museum                ,Electricity                   ,11-Dec-2023,TOTALENERGIES GAS & POWER LTD           ,"1,086.20",Jan-24
EREWASH BOROUGH COUNCIL,31391,Cotmanhay Pavilion            ,Electricity                   ,11-Dec-2023,TOTALENERGIES GAS & POWER LTD           ,311.26,Jan-24
EREWASH BOROUGH COUNCIL,30617,Cotmanhay Pavilion            ,Electricity                   ,11-Dec-2023,TOTALENERGIES GAS & POWER LTD           ,316.50,Jan-24
EREWASH BOROUGH COUNCIL,31391,Green Space                   ,Electricity                   ,11-Dec-2023,TOTALENERGIES GAS & POWER LTD           ,"4,568.86",Jan-24
EREWASH BOROUGH COUNCIL,31391,Green Space                   ,Electricity                   ,11-Dec-2023,TOTALENERGIES GAS & POWER LTD           ,"1,306.82",Jan-24
EREWASH BOROUGH COUNCIL,30616,Green Space                   ,Electricity                   ,11-Dec-2023,TOTALENERGIES GAS & POWER LTD           ,"2,683.14",Jan-24
EREWASH BOROUGH COUNCIL,30617,Green Space                   ,Electricity                   ,11-Dec-2023,TOTALENERGIES GAS & POWER LTD           ,"3,696.22",Jan-24
EREWASH BOROUGH COUNCIL,30617,Green Space                   ,Electricity                   ,11-Dec-2023,TOTALENERGIES GAS & POWER LTD           ,"1,614.54",Jan-24
EREWASH BOROUGH COUNCIL,31391,Cemeteries                    ,Electricity                   ,11-Dec-2023,TOTALENERGIES GAS & POWER LTD           ,527.23,Jan-24
EREWASH BOROUGH COUNCIL,30617,Cemeteries                    ,Electricity                   ,11-Dec-2023,TOTALENERGIES GAS & POWER LTD           ,530.50,Jan-24
EREWASH BOROUGH COUNCIL,31391,Public Conveniences           ,Electricity                   ,11-Dec-2023,TOTALENERGIES GAS & POWER LTD           ,"1,030.41",Jan-24
EREWASH BOROUGH COUNCIL,30617,Public Conveniences           ,Electricity                   ,11-Dec-2023,TOTALENERGIES GAS & POWER LTD           ,"1,095.64",Jan-24
EREWASH BOROUGH COUNCIL,31391,CCTV - Ilkeston and Long Eaton,Electricity                   ,11-Dec-2023,TOTALENERGIES GAS & POWER LTD           ,891.00,Jan-24
EREWASH BOROUGH COUNCIL,30617,CCTV - Ilkeston and Long Eaton,Electricity                   ,11-Dec-2023,TOTALENERGIES GAS & POWER LTD           ,902.47,Jan-24
EREWASH BOROUGH COUNCIL,31391,Car Parking                   ,Electricity                   ,11-Dec-2023,TOTALENERGIES GAS & POWER LTD           ,"1,882.47",Jan-24
EREWASH BOROUGH COUNCIL,30617,Car Parking                   ,Electricity                   ,11-Dec-2023,TOTALENERGIES GAS & POWER LTD           ,"1,869.50",Jan-24
EREWASH BOROUGH COUNCIL,30616,Long Eaton Market             ,Electricity                   ,11-Dec-2023,TOTALENERGIES GAS & POWER LTD           ,363.02,Jan-24
EREWASH BOROUGH COUNCIL,31391,Ilkeston Market               ,Electricity                   ,11-Dec-2023,TOTALENERGIES GAS & POWER LTD           ,988.28,Jan-24
EREWASH BOROUGH COUNCIL,30617,Ilkeston Market               ,Electricity                   ,11-Dec-2023,TOTALENERGIES GAS & POWER LTD           ,"1,007.76",Jan-24
EREWASH BOROUGH COUNCIL,30616,Merlin Way Depot              ,Electricity                   ,11-Dec-2023,TOTALENERGIES GAS & POWER LTD           ,"3,872.59",Jan-24
EREWASH BOROUGH COUNCIL,30616,Civic Accommodation Long Eaton,Electricity                   ,11-Dec-2023,TOTALENERGIES GAS & POWER LTD           ,"4,040.99",Jan-24
EREWASH BOROUGH COUNCIL,31391,Civic Accommodation Ilkeston  ,Electricity                   ,11-Dec-2023,TOTALENERGIES GAS & POWER LTD           ,"1,697.76",Jan-24
EREWASH BOROUGH COUNCIL,30616,Civic Accommodation Ilkeston  ,Electricity                   ,11-Dec-2023,TOTALENERGIES GAS & POWER LTD           ,"3,279.14",Jan-24
EREWASH BOROUGH COUNCIL,30617,Civic Accommodation Ilkeston  ,Electricity                   ,11-Dec-2023,TOTALENERGIES GAS & POWER LTD           ,930.69,Jan-24
EREWASH BOROUGH COUNCIL,30616,Sandiacre Friesland Sports Ctr,Electricity                   ,11-Dec-2023,TOTALENERGIES GAS & POWER LTD           ,"1,821.54",Jan-24
EREWASH BOROUGH COUNCIL,30629,Erewash Museum                ,Gas                           ,13-Dec-2023,TOTALENERGIES GAS & POWER LTD           ,"1,293.40",Jan-24
EREWASH BOROUGH COUNCIL,30629,Green Space                   ,Gas                           ,13-Dec-2023,TOTALENERGIES GAS & POWER LTD           ,661.38,Jan-24
EREWASH BOROUGH COUNCIL,30629,Green Space                   ,Gas                           ,13-Dec-2023,TOTALENERGIES GAS & POWER LTD           ,918.31,Jan-24
EREWASH BOROUGH COUNCIL,30629,Merlin Way Depot              ,Gas                           ,13-Dec-2023,TOTALENERGIES GAS & POWER LTD           ,"2,524.86",Jan-24
EREWASH BOROUGH COUNCIL,30629,Civic Accommodation Long Eaton,Gas                           ,13-Dec-2023,TOTALENERGIES GAS & POWER LTD           ,"2,981.72",Jan-24
EREWASH BOROUGH COUNCIL,30629,Civic Accommodation Ilkeston  ,Gas                           ,13-Dec-2023,TOTALENERGIES GAS & POWER LTD           ,"4,493.77",Jan-24
EREWASH BOROUGH COUNCIL,30629,Sandiacre Friesland Sports Ctr,Gas                           ,13-Dec-2023,TOTALENERGIES GAS & POWER LTD           ,"2,429.57",Jan-24
EREWASH BOROUGH COUNCIL,30629,Rutland Sports Park           ,Gas                           ,13-Dec-2023,TOTALENERGIES GAS & POWER LTD           ,427.36,Jan-24
EREWASH BOROUGH COUNCIL,30669,Green Space                   ,Metered Water                 ,12-Dec-2023,ANGLIAN WATER BUSINESS (NATIONAL)       ,"2,248.56",Jan-24
EREWASH BOROUGH COUNCIL,30669,Allotments                    ,Metered Water                 ,12-Dec-2023,ANGLIAN WATER BUSINESS (NATIONAL)       ,693.47,Jan-24
EREWASH BOROUGH COUNCIL,30669,Public Conveniences           ,Metered Water                 ,12-Dec-2023,ANGLIAN WATER BUSINESS (NATIONAL)       ,"1,679.49",Jan-24
EREWASH BOROUGH COUNCIL,30669,Merlin Way Depot              ,Metered Water                 ,12-Dec-2023,ANGLIAN WATER BUSINESS (NATIONAL)       ,"1,558.89",Jan-24
EREWASH BOROUGH COUNCIL,30669,Civic Accommodation Ilkeston  ,Metered Water                 ,12-Dec-2023,ANGLIAN WATER BUSINESS (NATIONAL)       ,546.94,Jan-24
EREWASH BOROUGH COUNCIL,30807,Corporate Health and Safety   ,Water Testing                 ,21-Dec-2023,STERILIZING SERVICES LTD                ,817.00,Jan-24
EREWASH BOROUGH COUNCIL,30669,Car Parking                   ,Unmetered Water               ,12-Dec-2023,ANGLIAN WATER BUSINESS (NATIONAL)       ,"2,063.59",Jan-24
EREWASH BOROUGH COUNCIL,30710,Household Waste Collection    ,Repairs and Maintenance       ,15-Dec-2023,DENNIS EAGLE LTD                        ,553.36,Jan-24
EREWASH BOROUGH COUNCIL,30712,Household Waste Collection    ,Repairs and Maintenance       ,15-Dec-2023,DENNIS EAGLE LTD                        ,654.07,Jan-24
EREWASH BOROUGH COUNCIL,30490,Household Waste Collection    ,Repairs and Maintenance       ,08-Dec-2023,MITCHELL DIESEL T/AMITCHELL POWERSYSTEMS,705.71,Jan-24
EREWASH BOROUGH COUNCIL,31117,Green Space                   ,Repairs and Maintenance       ,21-Dec-2023,THE MOWERMAN                            ,474.00,Jan-24
EREWASH BOROUGH COUNCIL,31034,Green Space                   ,Repairs and Maintenance       ,15-Nov-2023,EUROTRUCK MIDLANDS LTD                  ,325.00,Jan-24
EREWASH BOROUGH COUNCIL,31371,Green Space                   ,Repairs and Maintenance       ,29-Nov-2023,SPALDINGS LIMITED                       ,"1,120.53",Jan-24
EREWASH BOROUGH COUNCIL,30504,Green Space                   ,Repairs and Maintenance       ,12-Dec-2023,AEBI SCHMIDT UK LTD                     ,966.43,Jan-24
EREWASH BOROUGH COUNCIL,31603,Street Scene                  ,Repairs and Maintenance       ,18-Jan-2024,THE MOWERMAN                            ,787.50,Jan-24
EREWASH BOROUGH COUNCIL,30978,Household Waste Collection    ,Tyres                         ,30-Dec-2023,LODGE TYRE COMPANY LTD                  ,"1,854.75",Jan-24
EREWASH BOROUGH COUNCIL,30978,Trade Waste                   ,Tyres                         ,30-Dec-2023,LODGE TYRE COMPANY LTD                  ,87.95,Jan-24
EREWASH BOROUGH COUNCIL,30978,Kerbside Recycling Collection ,Tyres                         ,30-Dec-2023,LODGE TYRE COMPANY LTD                  ,215.90,Jan-24
EREWASH BOROUGH COUNCIL,30978,Street Scene                  ,Tyres                         ,30-Dec-2023,LODGE TYRE COMPANY LTD                  ,713.30,Jan-24
EREWASH BOROUGH COUNCIL,31515,Development Control           ,Planning Fees                 ,19-Jan-2024,PORTALPLANQUEST LTD                     ,509.00,Jan-24
EREWASH BOROUGH COUNCIL,31516,Development Control           ,Planning Fees                 ,19-Jan-2024,PORTALPLANQUEST LTD                     ,509.00,Jan-24
EREWASH BOROUGH COUNCIL,30703,Toll Bar House                ,Alarms Planned Maintenence    ,19-Dec-2023,TECSERV UK                              ,256.76,Jan-24
EREWASH BOROUGH COUNCIL,31391,Toll Bar House                ,Electricity                   ,11-Dec-2023,TOTALENERGIES GAS & POWER LTD           ,"4,635.29",Jan-24
EREWASH BOROUGH COUNCIL,30617,Toll Bar House                ,Electricity                   ,11-Dec-2023,TOTALENERGIES GAS & POWER LTD           ,"4,732.87",Jan-24
EREWASH BOROUGH COUNCIL,30629,Bridge House - Long Eaton     ,Gas                           ,13-Dec-2023,TOTALENERGIES GAS & POWER LTD           ,785.54,Jan-24
EREWASH BOROUGH COUNCIL,31731,Non Domestic Rates Retention  ,NNDR Tariff                   ,25-Jan-2024,DERBY CITY COUNCIL                      ,"531,923.64",Jan-24
EREWASH BOROUGH COUNCIL,30669,Toll Bar House                ,Metered Water                 ,12-Dec-2023,ANGLIAN WATER BUSINESS (NATIONAL)       ,"1,155.04",Jan-24
